bitfinex/quotes_BTCUSD_20250123
["timestamp","ask_amount","ask_price","bid_price","bid_amount"]
[1737630958304,0.2941173,102050.0,102040.0,0.098]
[1737630958526,0.0981333,102050.0,102040.0,0.098]
[1737630958925,0.2941203,102050.0,102030.0,0.58736629]
[1737630959125,0.098,102040.0,102030.0,0.44401]
[1737630959331,0.5101243,102050.0,102030.0,0.44401]
[1737630959966,0.7061193,102050.0,102030.0,0.44401]
[1737630960379,0.5101223,102050.0,102030.0,0.44401]
[1737630960861,0.098,102040.0,102030.0,0.44401]
[1737630961060,0.2941233,102050.0,102030.0,0.63936029]
[1737630961251,0.4901163,102050.0,102030.0,0.73736229]
[1737630961725,0.4901163,102050.0,102030.0,0.93337229]
[1737630961933,0.4901163,102050.0,102030.0,0.73736229]
[1737630962139,0.2941233,102050.0,102040.0,0.098]
[1737630962341,0.0001423,102050.0,102040.0,0.19534729]
[1737630962472,0.0001423,102050.0,102040.0,0.098]
[1737630962673,0.0981333,102050.0,102040.0,0.098]
[1737630962876,0.0981333,102050.0,102030.0,0.640015]
[1737630963080,0.3141173,102050.0,102030.0,0.640015]
[1737630963292,0.3141173,102050.0,102040.0,0.098]
[1737630963491,0.3141173,102050.0,102030.0,0.542013]
[1737630963697,0.3141173,102050.0,102030.0,0.836036]
[1737630963698,0.5101093,102050.0,102030.0,0.836036]
[1737630964274,0.5101093,102050.0,102030.0,0.640016]
[1737630965001,0.5101093,102050.0,102030.0,0.836028]
[1737630965208,0.5101093,102050.0,102030.0,0.738025]
[1737630965418,0.3141173,102050.0,102040.0,0.098]
[1737630966089,0.5101093,102050.0,102030.0,0.836027]
[1737630967269,0.3141173,102050.0,102040.0,0.098]
[1737630967653,0.5101073,102050.0,102030.0,0.640015]
[1737630968078,0.3141173,102050.0,102040.0,0.098]
[1737630968871,0.3141173,102050.0,102030.0,0.640015]
[1737630968872,0.5101073,102050.0,102030.0,0.640015]
[1737630969083,0.3141173,102050.0,102040.0,0.098]
[1737630970707,0.5101083,102050.0,102030.0,0.83632383]
[1737630971413,0.7061043,102050.0,102030.0,0.64031383]
[1737630971558,0.5101083,102050.0,102030.0,0.64031383]
[1737630972626,0.01834115,102040.0,102030.0,0.44430683]
[1737630973250,0.01834115,102040.0,102030.0,0.44410682]
[1737630973469,0.01824115,102040.0,102030.0,0.44410682]
[1737630973731,0.11624115,102040.0,102030.0,0.00029883]
[1737630973987,0.248,102040.0,102030.0,0.00029883]
[1737630974720,0.118,102040.0,102030.0,0.00029883]
[1737630977582,0.8327095,102040.0,102030.0,0.00029883]
[1737630978517,0.62394729,102040.0,102030.0,0.00029883]
[1737630978748,0.64394729,102040.0,102030.0,0.00029883]
[1737630978983,0.5466,102040.0,102030.0,0.00029883]
[1737630979943,0.73536221,102040.0,102030.0,0.00029883]
[1737630981128,0.64394729,102040.0,102030.0,0.00029883]
[1737630981372,0.62394729,102040.0,102030.0,0.00029883]
[1737630982547,0.64394729,102040.0,102030.0,0.00029883]
[1737630983263,0.62394729,102040.0,102030.0,0.00029883]
[1737630987711,0.64394729,102040.0,102030.0,0.00029883]
[1737630988321,0.418,102040.0,102030.0,0.09830883]
[1737630988536,0.418,102040.0,102030.0,0.00029883]
[1737630989127,0.412714,102040.0,102030.0,0.00029883]
[1737630989868,0.7880123,102050.0,102030.0,0.29431983]
[1737630990065,0.5101143,102050.0,102030.0,0.49032683]
[1737630990347,0.3141233,102050.0,102040.0,0.098]
[1737630990591,0.5101143,102050.0,102030.0,0.49031583]
[1737630990820,0.3141233,102050.0,102040.0,0.098]
[1737630991062,0.5101143,102050.0,102030.0,0.49031483]
[1737630991308,0.3141233,102050.0,102040.0,0.098]
[1737630992226,0.1181333,102050.0,102040.0,0.098]
[1737630992674,0.0201423,102050.0,102040.0,0.098]
[1737630992877,0.1181333,102050.0,102040.0,0.098]
[1737630993496,0.0201423,102050.0,102040.0,0.098]
[1737630993748,0.1181333,102050.0,102040.0,0.098]
[1737630995277,0.0201423,102050.0,102040.0,0.098]
[1737630995459,0.0001423,102050.0,102040.0,0.098]
[1737630996088,0.0001423,102050.0,102040.0,0.1778]
[1737630999327,0.0001423,102050.0,102040.0,0.3778]
[1737631000692,0.1181333,102050.0,102040.0,0.2]
[1737631000913,0.1181333,102050.0,102040.0,0.298]
[1737631001148,0.1181333,102050.0,102040.0,0.2]
[1737631001986,0.1181333,102050.0,102040.0,0.298]
[1737631006607,0.1181333,102050.0,102040.0,0.2]
[1737631007544,0.0981333,102050.0,102040.0,0.298]
[1737631007765,0.1181333,102050.0,102040.0,0.298]
[1737631007967,0.0981333,102050.0,102040.0,0.298]
[1737631008206,0.1181333,102050.0,102040.0,0.298]
[1737631009360,0.31014822,102050.0,102040.0,0.2]
[1737631009565,0.73749551,102050.0,102040.0,0.2]
[1737631009770,0.88749551,102050.0,102040.0,0.2]
[1737631009995,0.9848428,102050.0,102040.0,0.2]
[1737631010284,0.87342788,102050.0,102040.0,0.2]
[1737631010866,0.77608059,102050.0,102040.0,0.2]
[1737631011275,0.79608059,102050.0,102040.0,0.2]
[1737631011525,0.72608059,102050.0,102040.0,0.2]
[1737631011737,0.6487333,102050.0,102040.0,0.2]
[1737631014674,0.6987333,102050.0,102040.0,0.2]
[1737631015081,0.6487333,102050.0,102040.0,0.20029883]
[1737631015711,0.6987333,102050.0,102040.0,0.20029883]
[1737631015910,0.6487333,102050.0,102040.0,0.20029883]
[1737631016948,0.7829498,102050.0,102040.0,0.20029883]
[1737631017179,0.6987333,102050.0,102040.0,0.20029883]
[1737631017796,0.88749551,102050.0,102040.0,0.20029883]
[1737631018506,0.58749551,102050.0,102040.0,0.20029883]
[1737631018742,0.71971043,102050.0,102040.0,0.11518466]
[1737631018981,1.12468549,102050.0,102040.0,0.09558466]
[1737631019220,0.24911,102030.0,102020.0,0.00029883]
[1737631019465,0.56928713,102030.0,102020.0,0.00029883]
[1737631019696,0.81928713,102030.0,102020.0,8.3e-07]
[1737631019926,0.91663442,102030.0,102020.0,8.3e-07]
[1737631020871,1.24033442,102030.0,102020.0,8.3e-07]
[1737631021068,1.26379191,102030.0,102020.0,8.3e-07]
[1737631021342,1.24033442,102030.0,102020.0,8.3e-07]
[1737631021901,1.26379191,102030.0,102020.0,8.3e-07]
[1737631022164,1.24033442,102030.0,102020.0,8.3e-07]
[1737631022900,1.25007422,102030.0,102020.0,8.3e-07]
[1737631023159,1.27353171,102030.0,102020.0,8.3e-07]
[1737631023385,1.25007422,102030.0,102020.0,8.3e-07]
[1737631024377,1.2697791,102030.0,102020.0,8.3e-07]
[1737631024626,1.2787791,102030.0,102020.0,8.3e-07]
[1737631025104,1.30223659,102030.0,102020.0,8.3e-07]
[1737631025341,1.2787791,102030.0,102020.0,8.3e-07]
[1737631025571,1.31123659,102030.0,102020.0,8.3e-07]
[1737631026826,1.2879214,102030.0,102020.0,8.3e-07]
[1737631027044,1.2789214,102030.0,102020.0,8.3e-07]
[1737631027249,1.30237889,102030.0,102020.0,8.3e-07]
[1737631027568,1.2879214,102030.0,102020.0,8.3e-07]
[1737631027779,0.97867889,102030.0,102020.0,8.3e-07]
[1737631028188,0.9642214,102030.0,102020.0,8.3e-07]
[1737631028862,0.9552214,102030.0,102020.0,8.3e-07]
[1737631029124,0.76687411,102030.0,102020.0,8.3e-07]
[1737631033364,1.82897411,102030.0,102020.0,8.3e-07]
[1737631035058,1.62557411,102030.0,102020.0,8.3e-07]
[1737631035275,1.24335431,102030.0,102020.0,8.3e-07]
[1737631035689,1.34335431,102030.0,102020.0,8.3e-07]
[1737631035899,1.4407016,102030.0,102020.0,8.3e-07]
[1737631036114,1.4317016,102030.0,102020.0,8.3e-07]
[1737631037381,1.4227016,102030.0,102020.0,8.3e-07]
[1737631037773,1.4227016,102030.0,102020.0,0.00100083]
[1737631039328,1.26393939,102030.0,102020.0,0.00100083]
[1737631039542,0.70523939,102030.0,102020.0,0.00100083]
[1737631040460,0.72523939,102030.0,102020.0,0.08180083]
[1737631040830,0.70523939,102030.0,102020.0,0.08180083]
[1737631040997,0.65523939,102030.0,102020.0,0.08180083]
[1737631041200,0.70523939,102030.0,102020.0,0.08180083]
[1737631041834,0.80258668,102030.0,102020.0,0.08180083]
[1737631042432,0.84179668,102030.0,102020.0,0.08280083]
[1737631043004,0.9532116,102030.0,102020.0,0.00200083]
[1737631043450,0.9532116,102030.0,102020.0,0.00100083]
[1737631047122,0.9032116,102030.0,102020.0,0.00100083]
[1737631050283,1.03762652,102030.0,102020.0,8.3e-07]
[1737631050507,1.21382652,102030.0,102020.0,8.3e-07]
[1737631051378,0.598039,102000.0,101990.0,0.0759]
[1737631051577,0.79273358,102000.0,101990.0,0.07640312]
[1737631052752,0.79273358,102000.0,101990.0,0.00050312]
[1737631052753,0.9041485,102000.0,101990.0,0.00050312]
[1737631055143,0.6041485,102000.0,101990.0,0.00050312]
[1737631055349,0.69538629,102000.0,101990.0,0.00050312]
[1737631055747,0.80680121,102000.0,101990.0,0.00050312]
[1737631057835,0.69538629,102000.0,101990.0,0.00050312]
[1737631058647,0.70493118,102000.0,101990.0,0.00050312]
[1737631058845,0.83159668,102000.0,101990.0,0.00050312]
[1737631059548,0.9430116,102000.0,101990.0,0.00050312]
[1737631061348,0.9430116,102000.0,101990.0,0.00080237]
[1737631068620,0.91369339,102000.0,101990.0,0.00080237]
[1737631069538,1.48553231,102000.0,101990.0,3.7e-07]
[1737631069714,0.118077,101960.0,101950.0,0.13]
[1737631069918,0.13456617,101960.0,101950.0,0.13]
[1737631070133,0.34332838,101960.0,101950.0,0.082]
[1737631070366,0.418087,101950.0,101940.0,0.12619904]
[1737631070492,0.52950192,101950.0,101940.0,0.12619904]
[1737631070711,0.6041965,101950.0,101940.0,0.00029904]
[1737631071295,0.63350449,101950.0,101940.0,0.00029904]
[1737631071697,0.65865529,101950.0,101940.0,0.00029904]
[1737631072045,0.93350449,101950.0,101940.0,0.00029904]
[1737631074455,0.9432383,101950.0,101940.0,0.00029904]
[1737631075090,0.8932383,101950.0,101940.0,0.00029904]
[1737631075245,0.9432383,101950.0,101940.0,0.00029904]
[1737631078716,1.00465322,101950.0,101940.0,0.00029904]
[1737631078917,0.8932383,101950.0,101940.0,0.00029904]
[1737631079121,1.00465322,101950.0,101940.0,0.00029904]
[1737631079328,0.8932383,101950.0,101940.0,0.00029904]
[1737631079531,0.9183891,101950.0,101940.0,0.00029904]
[1737631080675,0.8932383,101950.0,101940.0,0.00029904]
[1737631085075,0.9932383,101950.0,101940.0,0.00029904]
[1737631085834,1.0183891,101950.0,101940.0,0.00029904]
[1737631086351,0.98908111,101950.0,101940.0,0.00029904]
[1737631087181,1.12349603,101950.0,101940.0,0.00029904]
[1737631087390,1.71567923,101950.0,101940.0,4e-08]
[1737631087728,1.07644523,101950.0,101940.0,4e-08]
[1737631089005,1.06503031,101950.0,101940.0,4e-08]
[1737631089711,0.68693031,101950.0,101940.0,4e-08]
[1737631091211,0.58693031,101950.0,101940.0,4e-08]
[1737631092122,0.56393031,101950.0,101940.0,4e-08]
[1737631093119,0.5751681,101950.0,101940.0,4e-08]
[1737631093489,0.51543429,101950.0,101940.0,0.12720004]
[1737631093675,0.56543429,101950.0,101940.0,0.12720004]
[1737631093877,0.71543429,101950.0,101940.0,0.12720004]
[1737631094446,1.51583113,101960.0,101940.0,0.61766704]
[1737631094648,1.53166691,101960.0,101950.0,0.178287]
[1737631094872,0.44734391,101960.0,101950.0,0.0802]
[1737631095081,0.60875883,101960.0,101950.0,0.0802]
[1737631095290,0.49734391,101960.0,101950.0,0.0802]
[1737631095493,0.5946912,101960.0,101950.0,0.0802]
[1737631095745,0.56547453,101960.0,101950.0,0.0802]
[1737631097958,0.77423674,101960.0,101950.0,0.0802]
[1737631098113,0.60423674,101960.0,101950.0,0.0802]
[1737631098525,0.418087,101950.0,101940.0,0.12870004]
[1737631098744,0.7241965,101950.0,101940.0,0.12870004]
[1737631099687,0.64211062,101950.0,101940.0,0.12870004]
[1737631101322,0.61278158,101950.0,101940.0,0.12870004]
[1737631102302,0.51543429,101950.0,101940.0,0.12870004]
[1737631105371,0.21543429,101950.0,101940.0,0.12870004]
[1737631106435,0.118087,101950.0,101940.0,0.22679604]
[1737631106641,0.46429824,101960.0,101950.0,0.098087]
[1737631106844,0.46429824,101960.0,101950.0,0.180587]
[1737631107053,0.51429824,101960.0,101950.0,0.180587]
[1737631107461,0.24813024,101960.0,101950.0,0.180587]
[1737631107671,5.024e-05,101960.0,101950.0,0.180587]
[1737631107869,0.09812724,101960.0,101950.0,0.180587]
[1737631108282,0.11812724,101960.0,101950.0,0.180587]
[1737631108615,0.09826984,101960.0,101950.0,0.180587]
[1737631109426,0.07950711,101960.0,101950.0,0.180587]
[1737631110647,0.02950711,101960.0,101950.0,0.180587]
[1737631111316,0.00019284,101960.0,101950.0,0.180587]
[1737631111543,0.00019284,101960.0,101950.0,0.228087]
[1737631120432,0.09826984,101960.0,101950.0,0.228087]
[1737631120621,0.00019284,101960.0,101950.0,0.228087]
[1737631121381,0.00019284,101960.0,101950.0,0.22838646]
[1737631121382,9.284e-05,101960.0,101950.0,0.22838646]
[1737631123568,9.284e-05,101960.0,101950.0,0.32573375]
[1737631129766,9.284e-05,101960.0,101950.0,0.22838646]
[1737631130576,9.284e-05,101960.0,101950.0,0.09838646]
[1737631130709,9.284e-05,101960.0,101950.0,0.00029946]
[1737631130710,0.09816984,101960.0,101950.0,0.00029946]
[1737631131306,0.09816984,101960.0,101950.0,0.09838646]
[1737631131508,9.284e-05,101960.0,101950.0,0.09838646]
[1737631132050,0.41816984,101960.0,101950.0,0.00029946]
[1737631132250,0.51551713,101960.0,101950.0,0.00029946]
[1737631133055,0.72427934,101960.0,101950.0,0.00029946]
[1737631133478,0.61286442,101960.0,101950.0,0.00029946]
[1737631134593,0.72427934,101960.0,101950.0,0.00029946]
[1737631134787,0.92427934,101960.0,101950.0,0.00029946]
[1737631135002,0.90427934,101960.0,101950.0,0.00029946]
[1737631138118,0.81286442,101960.0,101950.0,0.00029946]
[1737631139305,0.79286442,101960.0,101950.0,0.00029946]
[1737631140013,0.81286442,101960.0,101950.0,0.00029946]
[1737631140213,0.79286442,101960.0,101950.0,0.00029946]
[1737631141139,0.81286442,101960.0,101950.0,0.00029946]
[1737631144508,0.71541713,101960.0,101950.0,0.00029946]
[1737631144976,0.71541713,101960.0,101950.0,0.09838646]
[1737631144977,0.69541713,101960.0,101950.0,0.09838646]
[1737631145204,0.71541713,101960.0,101950.0,0.09838646]
[1737631145445,0.71555963,101960.0,101950.0,0.00029946]
[1737631145695,0.69555963,101960.0,101950.0,0.17698646]
[1737631145947,0.2982195,101960.0,101950.0,0.17698646]
[1737631146793,0.0001425,101960.0,101950.0,0.17698646]
[1737631147171,0.0001425,101960.0,101950.0,0.22428646]
[1737631149126,0.0001425,101960.0,101950.0,0.43304867]
[1737631150379,0.0001425,101960.0,101950.0,0.32163375]
[1737631152008,0.0001425,101960.0,101950.0,0.43304867]
[1737631152423,0.0001425,101960.0,101950.0,0.58304867]
[1737631153832,0.0001425,101960.0,101950.0,0.61355219]
[1737631154462,0.0001425,101960.0,101950.0,0.58304867]
[1737631155085,0.0001425,101960.0,101950.0,0.61354414]
[1737631155428,0.0001425,101960.0,101950.0,0.58304867]
[1737631156437,0.0001425,101960.0,101950.0,0.59568867]
[1737631160347,0.0001425,101960.0,101950.0,0.63868867]
[1737631160552,0.0001425,101960.0,101950.0,0.66914992]
[1737631163580,5e-07,101960.0,101950.0,0.66914992]
[1737631163787,5e-07,101960.0,101950.0,0.71914992]
[1737631164191,5e-07,101960.0,101950.0,0.83056484]
[1737631165301,5e-07,101960.0,101950.0,0.73914992]
[1737631165955,5e-07,101960.0,101950.0,0.85056484]
[1737631166538,0.0001425,101990.0,101980.0,0.33827292]
[1737631166766,0.00024119,101990.0,101980.0,0.58562021]
[1737631168467,0.00024119,101990.0,101980.0,0.59794021]
[1737631170308,0.00024119,101990.0,101980.0,0.58562021]
[1737631170463,0.00024119,101990.0,101980.0,0.59806021]
[1737631171971,0.00024119,101990.0,101980.0,0.60800302]
[1737631172638,0.00024119,101990.0,101980.0,0.60792302]
[1737631173037,0.00024119,101990.0,101980.0,0.63092302]
[1737631173238,0.00024119,101990.0,101980.0,0.65092302]
[1737631173760,0.00024119,101990.0,101980.0,0.67080996]
[1737631174826,1.9e-07,101990.0,101980.0,0.67080996]
[1737631175054,0.0001425,102020.0,101980.0,0.76449815]
[1737631175264,0.00024118,102020.0,102010.0,0.33394392]
[1737631175443,0.00024118,102020.0,102010.0,0.43129121]
[1737631178393,0.00024118,102020.0,102010.0,0.27357629]
[1737631178803,0.00024118,102020.0,102010.0,0.19537629]
[1737631179911,0.00024118,102020.0,102010.0,0.20512998]
[1737631180293,0.00024118,102020.0,102010.0,0.10778269]
[1737631182455,0.00024118,102020.0,102000.0,0.404685]
[1737631182456,0.22636018,102020.0,102000.0,0.404685]
[1737631182695,0.61845618,102020.0,102000.0,0.490156]
[1737631182915,0.42240718,102020.0,102010.0,0.098029]
[1737631183786,0.22636018,102020.0,102010.0,0.098029]
[1737631186383,0.12834118,102020.0,102010.0,0.098029]
[1737631186492,0.00024118,102020.0,102010.0,0.098029]
[1737631188013,0.00024118,102020.0,102010.0,0.20944392]
[1737631188778,0.00024118,102020.0,102010.0,0.098029]
[1737631191516,0.00024118,102020.0,102010.0,0.10773366]
[1737631192692,0.00024118,102020.0,102010.0,0.098029]
[1737631197183,0.00024118,102020.0,102010.0,0.19635648]
[1737631198642,0.00024118,102020.0,102010.0,0.19537629]
[1737631198953,0.00024118,102020.0,102010.0,0.30679121]
[1737631199174,0.00024118,102020.0,102010.0,0.38729121]
[1737631200068,0.00024118,102020.0,102010.0,0.53729121]
[1737631200277,0.00024118,102020.0,102010.0,0.6367483]
[1737631202297,0.00024118,102020.0,102010.0,0.63334266]
[1737631202541,0.0479,102040.0,102030.0,0.294024]
[1737631205556,0.129,102040.0,102030.0,0.294024]
[1737631207574,0.129,102040.0,102020.0,0.40200483]
[1737631207784,0.423015,102040.0,102030.0,0.09801]
[1737631208560,0.423015,102040.0,102020.0,0.69538212]
[1737631208969,0.423015,102040.0,102030.0,0.09801]
[1737631209178,0.098013,102030.0,102010.0,0.570618]
[1737631209387,0.989028,102040.0,102020.0,0.294053]
[1737631209576,0.09801,102030.0,102020.0,0.294053]
[1737631209820,1.185043,102040.0,102020.0,0.294053]
[1737631210263,0.773017,102040.0,102020.0,0.49009]
[1737631210471,0.527008,102040.0,102030.0,0.09801]
[1737631211077,0.527,102040.0,102030.0,0.09801]
[1737631211285,0.129,102040.0,102030.0,0.09801]
[1737631211421,0.56558697,102050.0,102030.0,0.490039]
[1737631211648,0.17360097,102050.0,102030.0,0.392021]
[1737631211850,0.00050297,102050.0,102040.0,0.098]
[1737631213863,0.12241227,102060.0,102040.0,0.293996]
[1737631214112,0.51449807,102060.0,102040.0,0.293996]
[1737631214328,0.3920858,102060.0,102040.0,0.293996]
[1737631214563,0.4900748,102060.0,102040.0,0.293996]
[1737631215151,0.6860488,102060.0,102040.0,0.293996]
[1737631215351,0.2941234,102050.0,102030.0,0.768825]
[1737631216177,0.2941234,102050.0,102030.0,0.572814]
[1737631216585,0.2941234,102050.0,102030.0,0.768824]
[1737631216767,0.2941234,102050.0,102030.0,0.572814]
[1737631216978,0.3754234,102050.0,102030.0,0.768825]
[1737631217337,0.3754234,102050.0,102030.0,0.572814]
[1737631217538,0.3754234,102050.0,102030.0,0.768825]
[1737631217818,0.3754234,102050.0,102040.0,0.098]
[1737631218028,0.0001424,102050.0,102040.0,0.098]
[1737631221685,0.0001424,102050.0,102040.0,0.33531492]
[1737631221896,0.0001424,102050.0,102040.0,0.2239]
[1737631223369,0.0001424,102050.0,102040.0,0.33531492]
[1737631223979,0.0001424,102050.0,102040.0,0.2239]
[1737631225050,0.0001424,102050.0,102040.0,0.43266221]
[1737631225255,0.0001424,102050.0,102040.0,0.58266221]
[1737631228094,0.0001424,102050.0,102040.0,0.60179002]
[1737631230903,0.0001424,102050.0,102040.0,0.22324729]
[1737631231102,0.0981334,102050.0,102030.0,0.09271784]
[1737631231317,0.0981334,102050.0,102030.0,0.00029904]
[1737631231318,0.098,102040.0,102030.0,0.00029904]
[1737631232809,0.5101304,102050.0,102030.0,0.00029904]
[1737631233030,0.7061234,102050.0,102030.0,0.00029904]
[1737631233303,0.098,102040.0,102030.0,0.00029904]
[1737631233812,0.5881254,102050.0,102030.0,0.00029904]
[1737631233946,0.2941294,102050.0,102030.0,0.09830804]
[1737631234152,0.2941294,102050.0,102030.0,0.29432804]
[1737631234557,0.4901194,102050.0,102030.0,0.09830804]
[1737631234763,0.4901194,102050.0,102030.0,0.29432804]
[1737631234964,0.4901194,102050.0,102030.0,0.09830804]
[1737631235172,0.098,102040.0,102030.0,0.00029904]
[1737631235378,0.6861224,102050.0,102030.0,0.00029904]
[1737631235593,0.4901214,102050.0,102030.0,0.00029904]
[1737631235801,0.098,102040.0,102030.0,0.00029904]
[1737631236007,0.1961324,102050.0,102030.0,0.09830704]
[1737631236208,0.0001424,102050.0,102030.0,0.39167333]
[1737631236412,0.0001424,102050.0,102040.0,0.1754]
[1737631237101,0.01845772,102050.0,102040.0,0.1754]
[1737631238083,0.0001424,102050.0,102040.0,0.1754]
[1737631238504,0.0001424,102050.0,102040.0,0.27274729]
[1737631239637,4.24e-05,102050.0,102040.0,0.27274729]
[1737631240251,4.24e-05,102050.0,102040.0,0.1754]
[1737631241409,0.0980334,102050.0,102040.0,0.098]
[1737631241641,0.2940244,102050.0,102040.0,0.098]
[1737631241847,4.24e-05,102050.0,102040.0,0.098]
[1737631242688,4.24e-05,102050.0,102040.0,0.1783]
[1737631242816,4.24e-05,102050.0,102040.0,0.27564729]
[1737631243019,4.24e-05,102050.0,102040.0,0.1783]
[1737631245328,0.5940244,102050.0,102030.0,0.29430904]
[1737631245528,0.5940244,102050.0,102030.0,0.49032104]
[1737631245646,0.7900174,102050.0,102030.0,0.49032104]
[1737631246072,0.2940244,102050.0,102030.0,0.68633204]
[1737631246275,0.7900144,102050.0,102030.0,0.49032004]
[1737631246776,0.8880154,102050.0,102030.0,0.29430904]
[1737631246974,0.098,102040.0,102030.0,0.09830204]
[1737631247184,0.098,102040.0,102030.0,0.00029904]
[1737631252703,0.398,102040.0,102030.0,0.00029904]
[1737631254753,0.62676221,102040.0,102030.0,0.00029904]
[1737631254974,0.47946221,102040.0,102030.0,0.00029904]
[1737631256856,0.47946221,102040.0,102030.0,0.00029904]
[1737631258332,0.36804729,102040.0,102030.0,0.00177904]
[1737631258559,0.47946221,102040.0,102030.0,0.00177904]
[1737631258760,0.38804729,102040.0,102030.0,0.00177904]
[1737631258959,0.49946221,102040.0,102030.0,0.00177904]
[1737631259180,0.39766106,102040.0,102030.0,0.00177904]
[1737631259486,0.50907598,102040.0,102030.0,0.00177904]
[1737631259672,0.098,102040.0,102030.0,0.09978904]
[1737631264861,0.098,102040.0,102030.0,0.00177904]
[1737631265227,0.098,102040.0,102030.0,0.09978904]
[1737631265913,0.098,102040.0,102030.0,0.00177904]
[1737631266088,0.098,102040.0,102030.0,0.09978904]
[1737631266548,0.098,102040.0,102030.0,0.00177904]
[1737631268353,0.098,102040.0,102030.0,0.09978904]
[1737631268568,0.2940264,102050.0,102040.0,0.098]
[1737631269290,0.2940264,102050.0,102030.0,0.61580104]
[1737631269472,0.2940264,102050.0,102030.0,0.81181104]
[1737631269613,0.4900164,102050.0,102030.0,0.81181104]
[1737631270013,0.2940264,102050.0,102040.0,0.098]
[1737631270870,0.2940264,102050.0,102030.0,0.71380804]
[1737631271077,0.2940264,102050.0,102040.0,0.098]
[1737631271613,0.098,102040.0,102030.0,0.37239004]
[1737631271841,0.098,102040.0,102030.0,0.17638904]
[1737631272047,1.05536469,102050.0,102040.0,0.098]
[1737631272048,0.3980344,102050.0,102040.0,0.098]
[1737631272223,0.3980344,102050.0,102040.0,0.1352382]
[1737631272758,0.098,102040.0,102030.0,0.37238704]
[1737631273295,0.098,102040.0,102030.0,0.07837904]
[1737631273514,0.148,102040.0,102030.0,0.17638904]
[1737631273689,0.098,102040.0,102030.0,0.17638904]
[1737631276565,0.8400244,102050.0,102030.0,0.56841904]
[1737631276803,0.93737169,102050.0,102030.0,0.56841904]
[1737631277217,1.13336469,102050.0,102030.0,0.56841904]
[1737631278287,0.01834343,102040.0,102030.0,0.37240004]
[1737631279134,0.01834343,102040.0,102030.0,0.51614733]
[1737631279338,4.24e-05,102050.0,102040.0,0.1739]
[1737631279516,4.24e-05,102050.0,102040.0,0.17487987]
[1737631279950,4.24e-05,102050.0,102040.0,0.27124729]
[1737631280169,4.24e-05,102050.0,102040.0,0.31764729]
[1737631282011,4.24e-05,102050.0,102040.0,0.57906221]
[1737631283169,4.24e-05,102050.0,102040.0,0.60945579]
[1737631283368,4.24e-05,102050.0,102040.0,0.57906221]
[1737631284034,4.24e-05,102050.0,102040.0,0.58904287]
[1737631285073,4.24e-05,102050.0,102040.0,0.47762795]
[1737631286277,4.24e-05,102050.0,102040.0,0.58904287]
[1737631289819,4.24e-05,102050.0,102040.0,0.47762795]
[1737631291091,4.24e-05,102050.0,102040.0,0.58904287]
[1737631291832,4.24e-05,102050.0,102040.0,0.49098795]
[1737631292442,4.24e-05,102050.0,102040.0,0.34098795]
[1737631293595,4.24e-05,102050.0,102040.0,0.32762795]
[1737631293874,4.24e-05,102050.0,102040.0,0.43904287]
[1737631294996,4.24e-05,102050.0,102040.0,0.58904287]
[1737631296773,4.24e-05,102050.0,102040.0,0.58934191]
[1737631299299,4.24e-05,102050.0,102040.0,0.60258191]
[1737631303957,4.24e-05,102050.0,102040.0,0.60258191]
[1737631305350,4.24e-05,102050.0,102040.0,0.60286191]
[1737631306716,4.24e-05,102050.0,102040.0,0.49144699]
[1737631306918,4.24e-05,102050.0,102040.0,0.32792699]
[1737631307245,4.24e-05,102050.0,102040.0,0.34144699]
[1737631313296,4.24e-05,102050.0,102040.0,0.45286191]
[1737631316613,4.24e-05,102050.0,102040.0,0.60286191]
[1737631317027,4.24e-05,102050.0,102040.0,0.63329602]
[1737631323423,4.24e-05,102050.0,102040.0,0.63305602]
[1737631326607,4.24e-05,102050.0,102040.0,0.67605602]
[1737631328631,0.0002932,102060.0,102050.0,0.290991]
[1737631328844,0.0001425,102070.0,102060.0,0.253381]
[1737631329054,0.0001425,102070.0,102060.0,0.62399224]
[1737631332220,5.352e-05,102070.0,102060.0,0.62399224]
[1737631333885,5.352e-05,102070.0,102060.0,0.556954]
[1737631334092,5.352e-05,102070.0,102060.0,0.28270497]
[1737631334093,0.08285352,102070.0,102060.0,0.28270497]
[1737631334286,5.352e-05,102070.0,102060.0,0.39411989]
[1737631334510,5.352e-05,102070.0,102060.0,0.47251989]
[1737631334715,5.352e-05,102070.0,102060.0,0.62251989]
[1737631335118,5.352e-05,102070.0,102060.0,0.73393481]
[1737631335376,5.352e-05,102070.0,102060.0,0.74717481]
[1737631336139,5.352e-05,102070.0,102060.0,0.77748333]
[1737631336312,5.352e-05,102070.0,102060.0,0.74717481]
[1737631336714,5.352e-05,102070.0,102060.0,0.77747691]
[1737631337123,5.352e-05,102070.0,102060.0,0.82047691]
[1737631337777,5.352e-05,102070.0,102060.0,0.86747691]
[1737631338276,5.352e-05,102070.0,102060.0,0.78010023]
[1737631340555,5.2e-07,102070.0,102060.0,0.78010023]
[1737631340761,5.2e-07,102070.0,102060.0,0.83010023]
[1737631340962,5.2e-07,102070.0,102060.0,0.83998599]
[1737631341238,5.2e-07,102070.0,102060.0,0.70994599]
[1737631341465,5.2e-07,102070.0,102060.0,0.49693107]
[1737631341688,5.2e-07,102070.0,102060.0,0.57853107]
[1737631341888,5.2e-07,102070.0,102060.0,0.59197107]
[1737631342217,5.2e-07,102070.0,102060.0,0.56166897]
[1737631343232,5.2e-07,102070.0,102060.0,0.56196801]
[1737631343634,5.2e-07,102070.0,102060.0,0.67338293]
[1737631344064,5.2e-07,102070.0,102060.0,0.56196801]
[1737631345674,5.2e-07,102070.0,102060.0,0.58496801]
[1737631345891,5.2e-07,102070.0,102060.0,0.74667526]
[1737631346091,5.2e-07,102070.0,102060.0,0.79547526]
[1737631347233,5.2e-07,102070.0,102060.0,0.84547526]
[1737631350799,5.2e-07,102070.0,102060.0,0.86547526]
[1737631351344,4e-07,102090.0,102080.0,0.443462]
[1737631351566,0.0814,102130.0,102120.0,0.293757]
[1737631351906,0.0814,102130.0,102110.0,0.293779]
[1737631351907,0.0814,102120.0,102110.0,0.293779]
[1737631353070,0.179327,102120.0,102100.0,0.489682]
[1737631353284,0.097933,102110.0,102100.0,0.097935]
[1737631353488,0.0758,102110.0,102090.0,0.195891]
[1737631353664,0.173735,102110.0,102100.0,0.097943]
[1737631354065,0.0758,102110.0,102100.0,0.097943]
[1737631354414,0.173733,102110.0,102100.0,0.097943]
[1737631354709,0.221433,102110.0,102100.0,0.097943]
[1737631354922,0.081,102100.0,102090.0,0.13003059]
[1737631355260,0.178943,102100.0,102090.0,0.13003059]
[1737631355459,0.178943,102100.0,102090.0,0.03207859]
[1737631355695,0.178943,102100.0,102090.0,0.13003059]
[1737631357219,0.081,102100.0,102090.0,0.13003059]
[1737631358299,0.421118,102110.0,102100.0,0.097943]
[1737631358495,0.421118,102110.0,102100.0,0.12718899]
[1737631359497,0.22524,102110.0,102100.0,0.12718899]